[Event "Titled Tuesday Blitz June 15 2021"]
[White "Baskin, Robert"]
[Black "Vokhidov, Shamsiddin"]
[WhiteFideId "24662402"]
[BlackFideId "14204223"]
[WhiteElo "2462"]
[BlackElo "2572"]
[Result "1-0"]
[Round "07"]
[TimeControl "180+1"]
[Date "2021.06.15"]
[WhiteClock "0:00:27"]
[BlackClock "0:01:03"]

1. d4 {[%clk 0:03:00]}  Nf6 {[%clk 0:03:00]} 2. c4 {[%clk 0:02:59]}  e6 {[%clk 0:03:00]} 3. Nf3 {[%clk 0:02:59]}  b6 {[%clk 0:03:00]} 4. a3 {[%clk 0:02:56]}  Ba6 {[%clk 0:03:01]} 5. Qc2 {[%clk 0:02:41]}  Bb7 {[%clk 0:03:00]} 6. Nc3 {[%clk 0:02:39]}  c5 {[%clk 0:03:00]} 7. e4 {[%clk 0:02:36]}  cxd4 {[%clk 0:02:59]} 8. Nxd4 {[%clk 0:02:37]}  Nc6 {[%clk 0:03:00]} 9. Nxc6 {[%clk 0:02:28]}  Bxc6 {[%clk 0:03:01]} 10. Bf4 {[%clk 0:02:28]}  Bc5 {[%clk 0:02:59]} 11. Be2 {[%clk 0:02:21]}  O-O {[%clk 0:02:57]} 12. e5 {[%clk 0:02:15]}  Nh5 {[%clk 0:02:56]} 13. Bxh5 {[%clk 0:02:12]}  Qh4 {[%clk 0:02:56]} 14. Bf3 {[%clk 0:01:35]}  Bxf3 {[%clk 0:02:53]} 15. Bg3 {[%clk 0:01:34]}  Qxc4 {[%clk 0:02:40]} 16. gxf3 {[%clk 0:01:34]}  f6 {[%clk 0:02:39]} 17. Qe4 {[%clk 0:01:25]}  Bd4 {[%clk 0:02:36]} 18. O-O-O {[%clk 0:01:20]}  Rac8 {[%clk 0:01:30]} 19. Qxd4 {[%clk 0:01:15]}  Qa2 {[%clk 0:01:30]} 20. exf6 {[%clk 0:01:02]}  Rxf6 {[%clk 0:01:25]} 21. Qxd7 {[%clk 0:01:02]}  Rxc3+ {[%clk 0:01:11]} 22. bxc3 {[%clk 0:01:01]}  Rxf3 {[%clk 0:01:12]} 23. Qc8+ {[%clk 0:00:28]}  Kf7 {[%clk 0:01:07]} 24. Qb7+ {[%clk 0:00:27]}  Kg6 {[%clk 0:01:05]} 25. Qxf3 {[%clk 0:00:27]}  Qxa3+ {[%clk 0:01:03]} 26. Kd2 {[%clk 0:00:27]} 1-0


[Site "https://www.chess.com"]

[Event "Titled Tuesday Blitz June 15 2021"]
[White "Bok, Benjamin"]
[Black "Gormally, Daniel W"]
[WhiteFideId "1017063"]
[BlackFideId "406465"]
[WhiteElo "2658"]
[BlackElo "2543"]
[Result "0-1"]
[Round "07"]
[TimeControl "180+1"]
[Date "2021.06.15"]
[WhiteClock "0:00:03"]
[BlackClock "0:00:13"]

1. d4 {[%clk 0:03:00]}  Nf6 {[%clk 0:02:59]} 2. c4 {[%clk 0:03:00]}  g6 {[%clk 0:03:00]} 3. Nf3 {[%clk 0:03:00]}  Bg7 {[%clk 0:03:00]} 4. g3 {[%clk 0:03:01]}  O-O {[%clk 0:03:00]} 5. Bg2 {[%clk 0:03:01]}  d6 {[%clk 0:03:00]} 6. O-O {[%clk 0:03:01]}  Nbd7 {[%clk 0:03:01]} 7. Nc3 {[%clk 0:03:01]}  e5 {[%clk 0:03:01]} 8. e4 {[%clk 0:03:01]}  c6 {[%clk 0:03:01]} 9. Be3 {[%clk 0:03:01]}  Re8 {[%clk 0:02:56]} 10. h3 {[%clk 0:02:52]}  exd4 {[%clk 0:02:56]} 11. Nxd4 {[%clk 0:02:53]}  Nc5 {[%clk 0:02:56]} 12. Qc2 {[%clk 0:02:52]}  a5 {[%clk 0:02:56]} 13. Rfe1 {[%clk 0:02:52]}  Nfd7 {[%clk 0:02:56]} 14. Rad1 {[%clk 0:02:50]}  a4 {[%clk 0:02:56]} 15. Nde2 {[%clk 0:02:27]}  Qe7 {[%clk 0:02:47]} 16. b4 {[%clk 0:02:26]}  axb3 {[%clk 0:02:43]} 17. axb3 {[%clk 0:02:27]}  Na6 {[%clk 0:02:30]} 18. Rd2 {[%clk 0:01:56]}  Ndc5 {[%clk 0:02:28]} 19. Qd1 {[%clk 0:01:26]}  Bf8 {[%clk 0:01:55]} 20. Bf4 {[%clk 0:01:11]}  Qc7 {[%clk 0:01:43]} 21. Bxd6 {[%clk 0:00:49]}  Bxd6 {[%clk 0:01:41]} 22. Rxd6 {[%clk 0:00:50]}  Nxb3 {[%clk 0:01:42]} 23. e5 {[%clk 0:00:28]}  Nac5 {[%clk 0:01:40]} 24. f4 {[%clk 0:00:16]}  Ra1 {[%clk 0:01:39]} 25. Qxa1 {[%clk 0:00:16]}  Nxa1 {[%clk 0:01:39]} 26. Rxa1 {[%clk 0:00:17]}  Be6 {[%clk 0:01:32]} 27. g4 {[%clk 0:00:16]}  Bxc4 {[%clk 0:01:30]} 28. Ng3 {[%clk 0:00:16]}  Qb6 {[%clk 0:01:29]} 29. Kh2 {[%clk 0:00:16]}  Qb2 {[%clk 0:01:29]} 30. Nce4 {[%clk 0:00:11]}  Nxe4 {[%clk 0:01:22]} 31. Nxe4 {[%clk 0:00:12]}  Qxa1 {[%clk 0:01:22]} 32. Nf6+ {[%clk 0:00:12]}  Kf8 {[%clk 0:01:22]} 33. Rd7 {[%clk 0:00:07]}  Qc1 {[%clk 0:01:05]} 34. Kg3 {[%clk 0:00:04]}  Qe3+ {[%clk 0:01:03]} 35. Bf3 {[%clk 0:00:04]}  Be2 {[%clk 0:01:01]} 36. Nxh7+ {[%clk 0:00:04]}  Kg7 {[%clk 0:01:01]} 37. Ng5 {[%clk 0:00:05]}  Bxf3 {[%clk 0:00:54]} 38. Nxf3 {[%clk 0:00:05]}  Ra8 {[%clk 0:00:52]} 39. e6 {[%clk 0:00:02]}  Ra3 {[%clk 0:00:43]} 40. Rxf7+ {[%clk 0:00:02]}  Kg8 {[%clk 0:00:43]} 41. Kh4 {[%clk 0:00:03]}  Qxf3 {[%clk 0:00:29]} 42. Kg5 {[%clk 0:00:03]}  Ra5+ {[%clk 0:00:26]} 43. Kxg6 {[%clk 0:00:03]}  Qxh3 {[%clk 0:00:19]} 44. Kf6 {[%clk 0:00:02]}  Qxg4 {[%clk 0:00:17]} 45. Ke7 {[%clk 0:00:03]}  Ra8 {[%clk 0:00:15]} 46. f5 {[%clk 0:00:02]}  Qb4+ {[%clk 0:00:14]} 47. Kd7 {[%clk 0:00:03]}  Qd4+ {[%clk 0:00:13]} 48. Kc7 {[%clk 0:00:02]}  Qd8+ {[%clk 0:00:13]} 49. Kxb7 {[%clk 0:00:02]}  Rb8+ {[%clk 0:00:13]} 50. Kxc6 {[%clk 0:00:02]}  Rb6+ {[%clk 0:00:13]} 51. Kc5 {[%clk 0:00:03]}  Qd6+ {[%clk 0:00:13]} 0-1


[Site "https://www.chess.com"]

[Event "Titled Tuesday Blitz June 15 2021"]
[White "Bologan, Victor"]
[Black "Karttunen, Mika"]
[WhiteFideId "13900048"]
[BlackFideId "502081"]
[WhiteElo "2511"]
[BlackElo "2343"]
[Result "1-0"]
[Round "07"]
[TimeControl "180+1"]
[Date "2021.06.15"]
[WhiteClock "0:00:36"]
[BlackClock "0:00:14"]

1. e4 {[%clk 0:03:00]}  c5 {[%clk 0:02:57]} 2. Nf3 {[%clk 0:02:59]}  d6 {[%clk 0:02:51]} 3. c3 {[%clk 0:02:58]}  Nf6 {[%clk 0:02:48]} 4. Bd3 {[%clk 0:02:58]}  Nc6 {[%clk 0:02:45]} 5. Bc2 {[%clk 0:02:57]}  e5 {[%clk 0:02:41]} 6. O-O {[%clk 0:02:55]}  Be7 {[%clk 0:02:41]} 7. h3 {[%clk 0:02:56]}  O-O {[%clk 0:02:40]} 8. d4 {[%clk 0:02:56]}  Qc7 {[%clk 0:02:32]} 9. d5 {[%clk 0:02:49]}  Nd8 {[%clk 0:02:29]} 10. c4 {[%clk 0:02:49]}  Ne8 {[%clk 0:02:26]} 11. Nc3 {[%clk 0:02:48]}  g6 {[%clk 0:02:03]} 12. Bh6 {[%clk 0:02:47]}  Ng7 {[%clk 0:02:01]} 13. Kh2 {[%clk 0:02:45]}  f6 {[%clk 0:02:00]} 14. g4 {[%clk 0:02:41]}  Nf7 {[%clk 0:02:00]} 15. Qd2 {[%clk 0:02:34]}  Bd7 {[%clk 0:01:59]} 16. Rg1 {[%clk 0:02:31]}  a6 {[%clk 0:01:55]} 17. a4 {[%clk 0:02:30]}  b6 {[%clk 0:01:47]} 18. Be3 {[%clk 0:02:28]}  Rab8 {[%clk 0:01:45]} 19. Bd3 {[%clk 0:02:26]}  Qd8 {[%clk 0:01:31]} 20. Rg2 {[%clk 0:02:19]}  Ng5 {[%clk 0:01:28]} 21. Ng1 {[%clk 0:02:15]}  Nf7 {[%clk 0:01:23]} 22. Rb1 {[%clk 0:02:08]}  Kh8 {[%clk 0:01:22]} 23. f4 {[%clk 0:02:01]}  exf4 {[%clk 0:01:20]} 24. Bxf4 {[%clk 0:02:01]}  Ne5 {[%clk 0:01:20]} 25. Be2 {[%clk 0:01:57]}  Re8 {[%clk 0:01:00]} 26. Rf1 {[%clk 0:01:49]}  Rf8 {[%clk 0:00:54]} 27. Nf3 {[%clk 0:01:44]}  Nf7 {[%clk 0:00:51]} 28. b3 {[%clk 0:01:37]}  Qe8 {[%clk 0:00:50]} 29. Qc2 {[%clk 0:01:25]}  Qc8 {[%clk 0:00:49]} 30. Bc1 {[%clk 0:01:23]}  Qc7 {[%clk 0:00:48]} 31. Bb2 {[%clk 0:01:21]}  Rbe8 {[%clk 0:00:48]} 32. Nd1 {[%clk 0:01:20]}  Qb7 {[%clk 0:00:44]} 33. Ne3 {[%clk 0:01:18]}  b5 {[%clk 0:00:42]} 34. axb5 {[%clk 0:01:17]}  axb5 {[%clk 0:00:43]} 35. g5 {[%clk 0:01:15]}  Ne5 {[%clk 0:00:39]} 36. gxf6 {[%clk 0:01:13]}  Bxf6 {[%clk 0:00:39]} 37. Nxe5 {[%clk 0:01:12]}  Bxe5+ {[%clk 0:00:37]} 38. Bxe5 {[%clk 0:01:11]}  dxe5 {[%clk 0:00:37]} 39. Rxf8+ {[%clk 0:01:09]}  Rxf8 {[%clk 0:00:37]} 40. cxb5 {[%clk 0:01:09]}  Rc8 {[%clk 0:00:32]} 41. Qc3 {[%clk 0:01:07]}  Qb8 {[%clk 0:00:30]} 42. Rf2 {[%clk 0:01:02]}  Rf8 {[%clk 0:00:23]} 43. Nd1 {[%clk 0:00:49]}  Rxf2+ {[%clk 0:00:22]} 44. Nxf2 {[%clk 0:00:47]}  Bxb5 {[%clk 0:00:22]} 45. Bxb5 {[%clk 0:00:46]}  Qxb5 {[%clk 0:00:22]} 46. Qxe5 {[%clk 0:00:46]}  Qxb3 {[%clk 0:00:20]} 47. Qd6 {[%clk 0:00:38]}  Qb5 {[%clk 0:00:14]} 48. Qf8# {[%clk 0:00:36]} 1-0


[Site "https://www.chess.com"]

[Event "Titled Tuesday Blitz June 15 2021"]
[White "Chigaev, Maksim"]
[Black "Khanin, Semen"]
[WhiteFideId "4108116"]
[BlackFideId "4111990"]
[WhiteElo "2646"]
[BlackElo "2521"]
[Result "1-0"]
[Round "07"]
[TimeControl "180+1"]
[Date "2021.06.15"]
[WhiteClock "0:00:05"]
[BlackClock "0:00:02"]

1. c4 {[%clk 0:03:00]}  g6 {[%clk 0:02:59]} 2. g3 {[%clk 0:02:59]}  Bg7 {[%clk 0:02:59]} 3. Bg2 {[%clk 0:02:59]}  d6 {[%clk 0:02:58]} 4. Nc3 {[%clk 0:02:59]}  e5 {[%clk 0:02:57]} 5. d3 {[%clk 0:02:59]}  f5 {[%clk 0:02:56]} 6. Nf3 {[%clk 0:02:56]}  Nf6 {[%clk 0:02:56]} 7. O-O {[%clk 0:02:57]}  O-O {[%clk 0:02:56]} 8. Rb1 {[%clk 0:02:58]}  a5 {[%clk 0:02:52]} 9. a3 {[%clk 0:02:57]}  Nc6 {[%clk 0:02:47]} 10. Bg5 {[%clk 0:02:57]}  h6 {[%clk 0:02:47]} 11. Bxf6 {[%clk 0:02:58]}  Bxf6 {[%clk 0:02:47]} 12. Nd2 {[%clk 0:02:53]}  Be6 {[%clk 0:02:45]} 13. Nd5 {[%clk 0:02:49]}  Bg7 {[%clk 0:02:29]} 14. b4 {[%clk 0:02:47]}  axb4 {[%clk 0:02:29]} 15. axb4 {[%clk 0:02:48]}  f4 {[%clk 0:02:00]} 16. b5 {[%clk 0:02:41]}  Nd4 {[%clk 0:02:00]} 17. e3 {[%clk 0:02:14]}  fxe3 {[%clk 0:01:59]} 18. Nxe3 {[%clk 0:02:08]}  c6 {[%clk 0:01:56]} 19. bxc6 {[%clk 0:02:03]}  bxc6 {[%clk 0:01:56]} 20. Nb3 {[%clk 0:02:03]}  Ra2 {[%clk 0:01:49]} 21. Nxd4 {[%clk 0:01:55]}  exd4 {[%clk 0:01:50]} 22. Nc2 {[%clk 0:01:55]}  c5 {[%clk 0:01:33]} 23. Ra1 {[%clk 0:01:54]}  Qa5 {[%clk 0:01:26]} 24. Rxa2 {[%clk 0:01:39]}  Qxa2 {[%clk 0:01:26]} 25. Be4 {[%clk 0:01:40]}  g5 {[%clk 0:01:01]} 26. Qb1 {[%clk 0:01:17]}  Qa5 {[%clk 0:00:45]} 27. Qb7 {[%clk 0:01:00]}  Qd2 {[%clk 0:00:31]} 28. Ne1 {[%clk 0:00:59]}  Bg4 {[%clk 0:00:25]} 29. Qd5+ {[%clk 0:00:53]}  Kh8 {[%clk 0:00:24]} 30. Qxd6 {[%clk 0:00:54]}  Bf5 {[%clk 0:00:07]} 31. Qd5 {[%clk 0:00:19]}  Bh3 {[%clk 0:00:04]} 32. Ng2 {[%clk 0:00:18]}  Bg4 {[%clk 0:00:03]} 33. Qc6 {[%clk 0:00:07]}  Bf5 {[%clk 0:00:03]} 34. h4 {[%clk 0:00:06]}  Bxe4 {[%clk 0:00:03]} 35. Qxe4 {[%clk 0:00:07]}  gxh4 {[%clk 0:00:03]} 36. Nxh4 {[%clk 0:00:08]}  Kg8 {[%clk 0:00:02]} 37. Ng6 {[%clk 0:00:07]}  Rf6 {[%clk 0:00:02]} 38. Nf4 {[%clk 0:00:08]}  Kf7 {[%clk 0:00:02]} 39. Rb1 {[%clk 0:00:07]}  Kg8 {[%clk 0:00:02]} 40. Rb8+ {[%clk 0:00:07]}  Bf8 {[%clk 0:00:03]} 41. Qd5+ {[%clk 0:00:06]}  Kg7 {[%clk 0:00:03]} 42. Nh5+ {[%clk 0:00:06]}  Kg6 {[%clk 0:00:03]} 43. Nxf6 {[%clk 0:00:06]}  Be7 {[%clk 0:00:03]} 44. Qe4+ {[%clk 0:00:04]}  Kxf6 {[%clk 0:00:03]} 45. Rb6+ {[%clk 0:00:04]}  Kf7 {[%clk 0:00:03]} 46. Qg6+ {[%clk 0:00:04]}  Kf8 {[%clk 0:00:02]} 47. Rb8+ {[%clk 0:00:05]}  Bd8 {[%clk 0:00:02]} 48. Qf6+ {[%clk 0:00:05]}  Ke8 {[%clk 0:00:02]} 49. Rxd8# {[%clk 0:00:05]} 1-0


[Site "https://www.chess.com"]

[Event "Titled Tuesday Blitz June 15 2021"]
[White "Demchenko, Anton"]
[Black "Yoo, Christopher Woojin"]
[WhiteFideId "4160258"]
[BlackFideId "30909694"]
[WhiteElo "2593"]
[BlackElo "2009"]
[Result "1-0"]
[Round "07"]
[TimeControl "180+1"]
[Date "2021.06.15"]
[WhiteClock "0:00:25"]
[BlackClock "0:00:01"]

1. e4 {[%clk 0:03:00]}  c5 {[%clk 0:02:59]} 2. Nf3 {[%clk 0:03:01]}  e6 {[%clk 0:02:59]} 3. g3 {[%clk 0:03:01]}  Nc6 {[%clk 0:02:58]} 4. Bg2 {[%clk 0:03:00]}  Nf6 {[%clk 0:02:58]} 5. Qe2 {[%clk 0:03:01]}  Be7 {[%clk 0:02:58]} 6. O-O {[%clk 0:03:00]}  d5 {[%clk 0:02:57]} 7. d3 {[%clk 0:02:57]}  O-O {[%clk 0:02:57]} 8. e5 {[%clk 0:02:57]}  Nd7 {[%clk 0:02:56]} 9. c4 {[%clk 0:02:58]}  Re8 {[%clk 0:02:03]} 10. Nc3 {[%clk 0:02:54]}  d4 {[%clk 0:02:00]} 11. Nb1 {[%clk 0:02:55]}  Qc7 {[%clk 0:01:58]} 12. Re1 {[%clk 0:02:54]}  b6 {[%clk 0:01:58]} 13. Bf4 {[%clk 0:02:51]}  Bb7 {[%clk 0:01:58]} 14. h4 {[%clk 0:02:50]}  h6 {[%clk 0:01:57]} 15. Nbd2 {[%clk 0:02:46]}  Nb4 {[%clk 0:01:50]} 16. Rec1 {[%clk 0:02:44]}  Nf8 {[%clk 0:01:48]} 17. a3 {[%clk 0:02:39]}  Nc6 {[%clk 0:01:48]} 18. h5 {[%clk 0:02:39]}  Nh7 {[%clk 0:01:10]} 19. Ne4 {[%clk 0:02:38]}  Na5 {[%clk 0:01:03]} 20. Re1 {[%clk 0:02:37]}  Nb3 {[%clk 0:00:52]} 21. Rad1 {[%clk 0:02:31]}  a5 {[%clk 0:00:52]} 22. Nh2 {[%clk 0:02:31]}  a4 {[%clk 0:00:46]} 23. Qg4 {[%clk 0:02:30]}  Kh8 {[%clk 0:00:45]} 24. Qh3 {[%clk 0:01:28]}  Reb8 {[%clk 0:00:31]} 25. Ng4 {[%clk 0:01:28]}  Bf8 {[%clk 0:00:30]} 26. Nd6 {[%clk 0:01:19]}  Bxg2 {[%clk 0:00:30]} 27. Qxg2 {[%clk 0:01:18]}  Qd7 {[%clk 0:00:28]} 28. Nb5 {[%clk 0:01:15]}  Be7 {[%clk 0:00:24]} 29. Nh2 {[%clk 0:01:13]}  Ra5 {[%clk 0:00:19]} 30. Ng4 {[%clk 0:01:06]}  Bf8 {[%clk 0:00:17]} 31. Qe4 {[%clk 0:01:04]}  Rxb5 {[%clk 0:00:15]} 32. cxb5 {[%clk 0:01:04]}  Qxb5 {[%clk 0:00:16]} 33. Nh2 {[%clk 0:01:01]}  Qd7 {[%clk 0:00:13]} 34. Nf3 {[%clk 0:01:01]}  b5 {[%clk 0:00:11]} 35. Nd2 {[%clk 0:01:01]}  Na5 {[%clk 0:00:08]} 36. Qe2 {[%clk 0:00:59]}  Be7 {[%clk 0:00:07]} 37. Rc1 {[%clk 0:00:55]}  Qd5 {[%clk 0:00:07]} 38. Red1 {[%clk 0:00:52]}  Nf8 {[%clk 0:00:06]} 39. g4 {[%clk 0:00:41]}  Nd7 {[%clk 0:00:06]} 40. Nf3 {[%clk 0:00:41]}  Nc6 {[%clk 0:00:06]} 41. Re1 {[%clk 0:00:40]}  b4 {[%clk 0:00:04]} 42. g5 {[%clk 0:00:35]}  hxg5 {[%clk 0:00:04]} 43. Bxg5 {[%clk 0:00:35]}  Ndxe5 {[%clk 0:00:02]} 44. Nxe5 {[%clk 0:00:35]}  Bxg5 {[%clk 0:00:02]} 45. Nxf7+ {[%clk 0:00:26]}  Kg8 {[%clk 0:00:02]} 46. Nxg5 {[%clk 0:00:25]}  Qxg5+ {[%clk 0:00:01]} 47. Kf1 {[%clk 0:00:26]}  e5 {[%clk 0:00:01]} 48. Qe4 {[%clk 0:00:25]}  Qf6 {[%clk 0:00:01]} 49. Rxc5 {[%clk 0:00:25]} 1-0


[Site "https://www.chess.com"]

[Event "Titled Tuesday Blitz June 15 2021"]
[White "Eljanov, Pavel"]
[Black "Sargsyan, Anna M."]
[WhiteFideId "14102951"]
[BlackFideId "13308130"]
[WhiteElo "2602"]
[BlackElo "2263"]
[Result "1-0"]
[Round "07"]
[TimeControl "180+1"]
[Date "2021.06.15"]
[WhiteClock "0:00:59"]
[BlackClock "0:00:04"]

1. c4 {[%clk 0:03:00]}  c6 {[%clk 0:02:59]} 2. Nf3 {[%clk 0:03:00]}  d5 {[%clk 0:03:00]} 3. g3 {[%clk 0:03:00]}  Nf6 {[%clk 0:02:59]} 4. Bg2 {[%clk 0:03:00]}  Bf5 {[%clk 0:03:00]} 5. Qb3 {[%clk 0:03:00]}  Qb6 {[%clk 0:02:59]} 6. d3 {[%clk 0:03:00]}  e6 {[%clk 0:02:59]} 7. Be3 {[%clk 0:03:00]}  Qc7 {[%clk 0:02:58]} 8. Bf4 {[%clk 0:02:54]}  Qb6 {[%clk 0:02:58]} 9. O-O {[%clk 0:02:50]}  Nbd7 {[%clk 0:02:58]} 10. cxd5 {[%clk 0:02:34]}  exd5 {[%clk 0:02:50]} 11. Qc2 {[%clk 0:02:31]}  Be7 {[%clk 0:02:45]} 12. Nc3 {[%clk 0:02:27]}  O-O {[%clk 0:02:43]} 13. e4 {[%clk 0:02:27]}  dxe4 {[%clk 0:02:39]} 14. dxe4 {[%clk 0:02:28]}  Be6 {[%clk 0:02:34]} 15. Ng5 {[%clk 0:02:19]}  Bc4 {[%clk 0:02:30]} 16. e5 {[%clk 0:02:19]}  Bxf1 {[%clk 0:01:47]} 17. Rxf1 {[%clk 0:02:18]}  h6 {[%clk 0:01:33]} 18. exf6 {[%clk 0:02:18]}  Nxf6 {[%clk 0:01:34]} 19. Nge4 {[%clk 0:02:17]}  Rad8 {[%clk 0:01:32]} 20. Be3 {[%clk 0:01:57]}  Qa5 {[%clk 0:01:27]} 21. a3 {[%clk 0:01:54]}  Rfe8 {[%clk 0:01:23]} 22. h3 {[%clk 0:01:53]}  Nd7 {[%clk 0:01:19]} 23. Bf4 {[%clk 0:01:25]}  Nf8 {[%clk 0:01:15]} 24. Ne2 {[%clk 0:01:13]}  Ne6 {[%clk 0:01:12]} 25. Be3 {[%clk 0:01:13]}  c5 {[%clk 0:01:06]} 26. h4 {[%clk 0:01:12]}  b5 {[%clk 0:01:00]} 27. h5 {[%clk 0:01:10]}  c4 {[%clk 0:00:57]} 28. Nf4 {[%clk 0:01:07]}  Nd4 {[%clk 0:00:34]} 29. Bxd4 {[%clk 0:01:07]}  Rxd4 {[%clk 0:00:35]} 30. Nc3 {[%clk 0:01:08]}  Bg5 {[%clk 0:00:24]} 31. Nfd5 {[%clk 0:01:06]}  Rd2 {[%clk 0:00:22]} 32. Qf5 {[%clk 0:01:07]}  Rxb2 {[%clk 0:00:19]} 33. Be4 {[%clk 0:01:06]}  Rxe4 {[%clk 0:00:05]} 34. Nxe4 {[%clk 0:01:04]}  Qd8 {[%clk 0:00:04]} 35. Rd1 {[%clk 0:00:59]} 1-0


[Site "https://www.chess.com"]

[Event "Titled Tuesday Blitz June 15 2021"]
[White "Grineva, Marianna"]
[Black "Materia, Marco"]
[WhiteFideId "14102013"]
[BlackFideId "45150451"]
[WhiteElo "1925"]
[BlackElo "2609"]
[Result "0-1"]
[Round "07"]
[TimeControl "180+1"]
[Date "2021.06.15"]
[WhiteClock "0:00:18"]
[BlackClock "0:00:16"]

1. e4 {[%clk 0:03:00]}  c5 {[%clk 0:02:59]} 2. Nf3 {[%clk 0:03:00]}  e6 {[%clk 0:02:58]} 3. d4 {[%clk 0:03:01]}  cxd4 {[%clk 0:02:59]} 4. Nxd4 {[%clk 0:03:02]}  Nc6 {[%clk 0:02:59]} 5. Nc3 {[%clk 0:03:02]}  Qc7 {[%clk 0:02:59]} 6. Be3 {[%clk 0:02:59]}  a6 {[%clk 0:02:59]} 7. Qf3 {[%clk 0:02:59]}  Bd6 {[%clk 0:02:59]} 8. O-O-O {[%clk 0:02:56]}  Be5 {[%clk 0:02:55]} 9. Nde2 {[%clk 0:02:54]}  Nge7 {[%clk 0:02:52]} 10. Qh3 {[%clk 0:02:49]}  g6 {[%clk 0:02:48]} 11. f4 {[%clk 0:02:46]}  Bg7 {[%clk 0:02:48]} 12. g4 {[%clk 0:02:44]}  b5 {[%clk 0:02:45]} 13. e5 {[%clk 0:02:34]}  Bb7 {[%clk 0:02:40]} 14. Bg2 {[%clk 0:02:31]}  h5 {[%clk 0:02:36]} 15. Ne4 {[%clk 0:02:22]}  hxg4 {[%clk 0:02:34]} 16. Qxg4 {[%clk 0:02:22]}  Nf5 {[%clk 0:02:33]} 17. Nd6+ {[%clk 0:02:14]}  Nxd6 {[%clk 0:02:31]} 18. Rxd6 {[%clk 0:02:13]}  Rc8 {[%clk 0:02:24]} 19. c3 {[%clk 0:02:06]}  b4 {[%clk 0:02:21]} 20. Rhd1 {[%clk 0:02:02]}  bxc3 {[%clk 0:02:19]} 21. Nxc3 {[%clk 0:01:57]}  Rxh2 {[%clk 0:02:15]} 22. Rxd7 {[%clk 0:01:54]}  Qxd7 {[%clk 0:02:13]} 23. Rxd7 {[%clk 0:01:55]}  Kxd7 {[%clk 0:02:13]} 24. Qd1+ {[%clk 0:01:52]}  Ke8 {[%clk 0:02:10]} 25. Bxc6+ {[%clk 0:01:46]}  Bxc6 {[%clk 0:02:09]} 26. Qd6 {[%clk 0:01:46]}  Bf8 {[%clk 0:02:05]} 27. Qd3 {[%clk 0:01:44]}  Bb7 {[%clk 0:01:53]} 28. a3 {[%clk 0:01:41]}  Be7 {[%clk 0:01:46]} 29. Kb1 {[%clk 0:01:40]}  Rh3 {[%clk 0:01:38]} 30. Qd2 {[%clk 0:01:34]}  Rc4 {[%clk 0:01:33]} 31. Qe2 {[%clk 0:01:19]}  Rc7 {[%clk 0:01:20]} 32. Bb6 {[%clk 0:01:10]}  Rc6 {[%clk 0:01:13]} 33. Ba5 {[%clk 0:01:10]}  Rc8 {[%clk 0:01:05]} 34. Bb4 {[%clk 0:01:08]}  Bd8 {[%clk 0:00:55]} 35. Ka2 {[%clk 0:01:00]}  a5 {[%clk 0:00:40]} 36. Bd6 {[%clk 0:00:58]}  Bc6 {[%clk 0:00:39]} 37. Qa6 {[%clk 0:00:54]}  Bd7 {[%clk 0:00:38]} 38. Ne4 {[%clk 0:00:44]}  Rc1 {[%clk 0:00:25]} 39. Qa8 {[%clk 0:00:37]}  Rc8 {[%clk 0:00:21]} 40. Qa7 {[%clk 0:00:33]}  Rh4 {[%clk 0:00:18]} 41. Nc5 {[%clk 0:00:20]}  Bc6 {[%clk 0:00:17]} 42. Nb7 {[%clk 0:00:20]}  Bd5+ {[%clk 0:00:16]} 43. Kb1 {[%clk 0:00:18]}  Rh1+ {[%clk 0:00:16]} 0-1


[Site "https://www.chess.com"]

[Event "Titled Tuesday Blitz June 15 2021"]
[White "Gunina, Valentina"]
[Black "Nakamura, Hikaru"]
[WhiteFideId "4167570"]
[BlackFideId "2016192"]
[WhiteElo "2399"]
[BlackElo "2900"]
[Result "1/2-1/2"]
[Round "07"]
[TimeControl "180+1"]
[Date "2021.06.15"]
[WhiteClock "0:00:34"]
[BlackClock "0:00:19"]

1. d4 {[%clk 0:03:00]}  g6 {[%clk 0:02:59]} 2. c4 {[%clk 0:03:00]}  Bg7 {[%clk 0:02:59]} 3. Nf3 {[%clk 0:02:59]}  f5 {[%clk 0:02:58]} 4. Nc3 {[%clk 0:02:58]}  Nf6 {[%clk 0:02:55]} 5. e3 {[%clk 0:02:57]}  d6 {[%clk 0:02:55]} 6. Be2 {[%clk 0:02:58]}  O-O {[%clk 0:02:55]} 7. O-O {[%clk 0:02:57]}  Qe8 {[%clk 0:02:56]} 8. b4 {[%clk 0:02:57]}  e5 {[%clk 0:02:56]} 9. Qb3 {[%clk 0:02:57]}  e4 {[%clk 0:02:54]} 10. Nd2 {[%clk 0:02:57]}  c6 {[%clk 0:02:53]} 11. b5 {[%clk 0:02:53]}  c5 {[%clk 0:02:51]} 12. dxc5 {[%clk 0:02:50]}  dxc5 {[%clk 0:02:52]} 13. Bb2 {[%clk 0:02:50]}  Be6 {[%clk 0:02:50]} 14. Nd5 {[%clk 0:02:49]}  Qf7 {[%clk 0:02:50]} 15. Nf4 {[%clk 0:02:48]}  Nbd7 {[%clk 0:02:45]} 16. Rad1 {[%clk 0:02:44]}  Ne8 {[%clk 0:02:42]} 17. Nb1 {[%clk 0:02:30]}  Nb6 {[%clk 0:02:37]} 18. Nxe6 {[%clk 0:02:26]}  Qxe6 {[%clk 0:02:37]} 19. Nc3 {[%clk 0:02:26]}  Nf6 {[%clk 0:02:30]} 20. Nd5 {[%clk 0:02:25]}  Nfxd5 {[%clk 0:02:29]} 21. cxd5 {[%clk 0:02:25]}  Qd6 {[%clk 0:02:29]} 22. Ba3 {[%clk 0:01:45]}  Rfe8 {[%clk 0:02:22]} 23. f3 {[%clk 0:01:32]}  exf3 {[%clk 0:02:20]} 24. Bxf3 {[%clk 0:01:32]}  Nd7 {[%clk 0:02:21]} 25. e4 {[%clk 0:01:31]}  fxe4 {[%clk 0:02:12]} 26. Bg4 {[%clk 0:01:31]}  Nf8 {[%clk 0:02:13]} 27. Kh1 {[%clk 0:01:22]}  b6 {[%clk 0:02:09]} 28. Qh3 {[%clk 0:01:11]}  h5 {[%clk 0:02:04]} 29. Be2 {[%clk 0:01:09]}  Rad8 {[%clk 0:01:45]} 30. Bc1 {[%clk 0:01:09]}  Bd4 {[%clk 0:01:40]} 31. Bc4 {[%clk 0:01:09]}  Rd7 {[%clk 0:01:37]} 32. Bf4 {[%clk 0:01:08]}  Be5 {[%clk 0:01:37]} 33. Be3 {[%clk 0:01:06]}  Rf7 {[%clk 0:01:35]} 34. Rxf7 {[%clk 0:01:06]}  Kxf7 {[%clk 0:01:35]} 35. Rf1+ {[%clk 0:01:06]}  Kg8 {[%clk 0:01:35]} 36. Qh4 {[%clk 0:01:04]}  Nd7 {[%clk 0:01:21]} 37. Qxe4 {[%clk 0:01:02]}  Kg7 {[%clk 0:01:22]} 38. Bd2 {[%clk 0:00:58]}  Nf6 {[%clk 0:01:20]} 39. Qe3 {[%clk 0:00:58]}  Ng4 {[%clk 0:01:18]} 40. Qf3 {[%clk 0:00:58]}  Rf8 {[%clk 0:01:04]} 41. Qxf8+ {[%clk 0:00:58]}  Qxf8 {[%clk 0:01:05]} 42. Rxf8 {[%clk 0:00:58]}  Kxf8 {[%clk 0:01:06]} 43. h3 {[%clk 0:00:54]}  Nf6 {[%clk 0:01:06]} 44. Bg5 {[%clk 0:00:54]}  Ne4 {[%clk 0:01:05]} 45. Be3 {[%clk 0:00:51]}  Nd6 {[%clk 0:01:03]} 46. Bd3 {[%clk 0:00:48]}  Kf7 {[%clk 0:01:01]} 47. a4 {[%clk 0:00:48]}  h4 {[%clk 0:00:54]} 48. Kg1 {[%clk 0:00:47]}  c4 {[%clk 0:00:43]} 49. Bc2 {[%clk 0:00:47]}  Kf6 {[%clk 0:00:42]} 50. Kf2 {[%clk 0:00:47]}  c3 {[%clk 0:00:42]} 51. Ke2 {[%clk 0:00:46]}  Nc4 {[%clk 0:00:42]} 52. Bf2 {[%clk 0:00:43]}  g5 {[%clk 0:00:37]} 53. Kd3 {[%clk 0:00:44]}  Nd6 {[%clk 0:00:30]} 54. Be1 {[%clk 0:00:39]}  Nb7 {[%clk 0:00:30]} 55. Kc4 {[%clk 0:00:36]}  Na5+ {[%clk 0:00:29]} 56. Kd3 {[%clk 0:00:36]}  Nb7 {[%clk 0:00:30]} 57. Kc4 {[%clk 0:00:37]}  Nd6+ {[%clk 0:00:30]} 58. Kd3 {[%clk 0:00:37]}  Kf7 {[%clk 0:00:21]} 59. Bf2 {[%clk 0:00:35]}  Nb7 {[%clk 0:00:20]} 60. Be1 {[%clk 0:00:34]}  Kf6 {[%clk 0:00:19]} 1/2-1/2


[Site "https://www.chess.com"]